Cogmind - Beta 14 @@@ ROGUE MODE // 2024.08.08 @ 11:19:53 // Halloween2019/Abominations Player: Minty Result: Destroyed by Lesser Abomination with Etherial Claws Performance ------------- Evolutions (0) 0 Regions Visited (1) 200 Robots Destroyed (8) 40 Value Destroyed (323) 323 Prototype IDs (0) 0 Alien Tech Used (0) 0 Bonus (0) 0 TOTAL SCORE: 563 Bonus ------- None Cogmind --------- Core Integrity 0/250 Matter 264/300 Energy 250/250 System Corruption 0% Temperature Cool (0) Movement Rolling (100) Location -10/Materials Parts ------- > --- POWER (1) -------- Ion Engine > --- PROPULSION (2) --- Compact Wheel > --- UTILITY (2) ------ (None) > --- WEAPON (2) ------- (None) > --- INVENTORY (5) ---- Light Treads Light Treads Aluminum Leg Small Storage Unit Sensor Array Peak State ------------ > --- POWER ------------ Ion Engine > --- PROPULSION ------- Aluminum Leg Aluminum Leg > --- UTILITY ---------- Small Storage Unit Weapon Shielding > --- WEAPON ----------- Medium Laser Assault Rifle > --- INVENTORY -------- Ion Engine Light Treads Light Treads Wheel Compact Wheel Assault Rifle [Rating: 7] Favorites ----------- Power Ion Engine Engine Ion Engine Propulsion Aluminum Leg Leg Aluminum Leg Wheel Compact Wheel Utility Small Storage Unit Storage Small Storage Unit Protection Weapon Shielding Weapon Medium Laser Energy Gun Medium Laser Ballistic Gun Assault Rifle Build | -11 -10 ------- Run | Yrd Mat Slots Evolved . | . . Power . | . . Propulsion . | . . Utility . | . . Weapon . | . . Parts Attached 4 | . 4 Power . | . . Engine . | . . Core . | . . Reactor . | . . Propulsion 2 | . 2 Treads . | . . Leg . | . . Wheel 2 | . 2 Hover . | . . Flight . | . . Utility 1 | . 1 Device . | . . Storage . | . . Processor . | . . Hackware . | . . Protection 1 | . 1 Artifact . | . . Weapon 1 | . 1 Energy Gun . | . . Energy Cannon . | . . Ballistic Gun 1 | . 1 Ballistic Cannon . | . . Launcher . | . . Special Weapon . | . . Impact Weapon . | . . Slashing Weapon . | . . Piercing Weapon . | . . Special Melee Weapon . | . . Unidentified Prototypes . | . . Parts Lost 6 | . 6 Power . | . . Propulsion 2 | . 2 Utility 1 | . 1 Weapon 3 | . 3 Highest Loss Streak 3 | . 3 To Critical Strikes . | . . Average Slot Usage (%) 84 | . 84 Engine 14 | . 14 Leg 11 | . 11 Wheel 14 | . 14 Storage 14 | . 14 Protection 1 | . 1 Energy Gun 14 | . 14 Ballistic Gun 13 | . 13 Peak Build Rating 7 | 6 7 Average Rating 5 | 6 5 On Entrance 6 | 6 6 Naked Turns . | . . Heaviest Build 15 | 14 15 Greatest Support 26 | 20 26 Greatest Overweight (x) 1 | . 1 Average Overweight (x) . | . . Largest Inventory Capacity 8 | 8 8 Average Capacity 7 | 8 7 Most Carried 7 | 6 7 Average Carried 4 | 6 4 Final Capacity 8 | 8 5 Final Carried 6 | 6 5 Class Distribution -------------------- 100% | Mutant Dominant Class ---------------- Mutant | -10/Materials Resources | -11 -10 ----------- Run | Yrd Mat Matter Collected 270 | 200 70 Remotely . | . . Salvage Created 326 | . 326 Parts 12 | . 12 Haulers Intercepted 1 | . 1 Recyclers Shooed . | . . Parts Field Recycled . | . . Retrieved Matter . | . . Parts Self-Destructed . | . . Prevented . | . . Kills | -11 -10 ------- Run | Yrd Mat Combat Hostiles Destroyed 6 | . 6 Guns 6 | . 6 Classes Destroyed 4 | . 4 Worker 1 | . 1 Hauler 1 | . 1 Swarmer 1 | . 1 Abomination 5 | . 5 Best Kill Streak 3 | . 3 Combat Bots Only 3 | . 3 Max Kills in Single Turn 1 | . 1 Gunslinging . | . . Exploded . | . . Melee . | . . Uniques/NPCs Destroyed . | . . Combat | -11 -10 -------- Run | Yrd Mat Hostile Shots Fired 34 | . 34 Missed 7 | . 7 Damage Taken 852 | . 852 Core 254 | . 254 Absorbed by Shields . | . . Redirected to Shielding 47 | . 47 Core Remaining (%) 100 | 100 . Volleys Fired 31 | . 31 Largest 2 | . 2 Hottest 70 | . 70 Shots Fired 59 | . 59 Gun 59 | . 59 Cannon . | . . Launcher . | . . Special . | . . Kinetic 30 | . 30 Thermal 29 | . 29 Explosive . | . . Electromagnetic . | . . Robot Hit Streak 8 | . 8 Robot Miss Streak 4 | . 4 Penetration Max . | . . Secondary Targets 3 | . 3 Max Gunslinging Chain 1 | . 1 Shots Hit Robots 41 | . 41 Core Hits 15 | . 15 Critical Kills 1 | . 1 Critical Parts Destroyed . | . . Critical Strikes 3 | . 3 Burn 2 | . 2 Destroy 1 | . 1 Melee Attacks . | . . Impact . | . . Slashing . | . . Piercing . | . . Sneak Attacks . | . . Combat Hostiles . | . . Follow-up Attacks . | . . Damage Inflicted 564 | . 564 Guns 564 | . 564 Cannons . | . . Explosions . | . . Melee . | . . Ramming . | . . Kinetic 265 | . 265 Thermal 299 | . 299 Explosive . | . . Electromagnetic . | . . Impact . | . . Slashing . | . . Piercing . | . . Highest Corruption . | . . Average Corruption . | . . Corruption Purged . | . . Corruption Blocked . | . . Overload Shots . | . . Overflow Damage . | . . Projectiles . | . . Explosions . | . . Melee . | . . Knockbacks . | . . Impact . | . . Kinetic . | . . Secondary . | . . Self-Inflicted Damage . | . . Shots . | . . Rammed . | . . Targets Rammed . | . . Kicked . | . . Crushed . | . . Highest Temperature 90 | . 90 Average Temperature 28 | . 28 Received Heat Transfer . | . . Siege Activations . | . . Robots Corrupted . | . . Combat Hostiles . | . . Parts Fried . | . . Impact Corruptions . | . . Robots Melted . | . . Combat Hostiles . | . . Parts Melted . | . . Heat Transferred 589 | . 589 Parts Sabotaged . | . . Parts Stolen . | . . Parts Stripped . | . . Power Chain Reactions . | . . Alert | -11 -10 ------- Run | Yrd Mat Peak Influence 67 | . 67 Initial . | . . Average 18 | . 19 Maximum Alert Level . | . . Low Security (%) 100 | 100 100 Level 1 . | . . Level 2 . | . . Level 3 . | . . Level 4 . | . . Level 5 . | . . High Security . | . . Max Security . | . . Squads Dispatched 1 | . 1 Investigation 1 | . 1 Extermination . | . . Reinforcement . | . . Assault . | . . Garrison . | . . Intercept . | . . Searches Triggered . | . . Construction Impeded . | . . Haulers Reinforced . | . . Active Scanning Responses . | . . Cargo Convoy Interrupts . | . . Stealth | -11 -10 --------- Run | Yrd Mat Distress Signals 4 | . 4 Communications Jammed . | . . Distress Signals . | . . Times Spotted 11 | . 11 Peak Tracking Total 3 | . 3 Tactical Retreats . | . . Traps | -11 -10 ------- Run | Yrd Mat Traps Triggered . | . . Indirectly . | . . Trap Hack Attempts . | . . Triggered . | . . Disarmed . | . . Reprogrammed . | . . Reused . | . . Traps Extracted . | . . Installed . | . . Triggered . | . . Machines | -11 -10 ---------- Run | Yrd Mat Machines Disabled 1 | . 1 Max in Single Turn 1 | . 1 Machines Repaired . | . . Machines Dismantled . | . . Machines Sabotaged . | . . Overloaded Fab Kills . | . . Hacking | -11 -10 --------- Run | Yrd Mat Machines Accessed 2 | . 2 Terminals 1 | . 1 Fabricators . | . . Repair Stations 1 | . 1 Recycling Units . | . . Scanalyzers . | . . Garrison Access . | . . Total Hacks 7 | . 7 Successful 3 | . 3 Failed 4 | . 4 Catastrophic 1 | . 1 Database Lockouts . | . . Manual 4 | . 4 Terminals 5 | . 5 Fabricators . | . . Repair Stations 2 | . 2 Recycling Units . | . . Scanalyzers . | . . Garrison Access . | . . Terminal Hacks 2 | . 2 Alert Level 1 | . 1 Zone Layout 1 | . 1 Fabricator Hacks . | . . Repair Station Hacks . | . . Recycling Unit Hacks . | . . Scanalyzer . | . . Garrison Access Hacks . | . . Unauthorized Hacks 1 | . 1 Terminals 1 | . 1 Botnet 1 | . 1 Fabricators . | . . Repair Stations . | . . Recycling Units . | . . Scanalyzers . | . . Garrison Access . | . . Data Cores Recovered . | . . Used . | . . Hacking Detections 2 | . 2 Full Trace Events 1 | . 1 Feedback Events . | . . Feedback Blocked . | . . Robot Schematics Acquired . | . . Robots Built . | . . Authchips . | . . Time . | . . Total Robot Build Rating . | . . Part Schematics Acquired . | . . Parts Built . | . . Authchips . | . . Time . | . . Total Part Build Rating . | . . Parts Repaired . | . . Time . | . . Parts Recycled . | . . Recycled Matter . | . . Retrieved Matter . | . . Retrieved Components . | . . Parts Scanalyzed . | . . Part Schematics Acquired . | . . Parts Damaged . | . . Bothacking | -11 -10 ------------ Run | Yrd Mat Used RIF Installer . | . . Robots Hacked . | . . Non-combat . | . . Combat . | . . Robot Hacks Applied . | . . Relay Couplers Released . | . . Fabnet Peak Effective % . | . . Robots Rewired . | . . Allies Hacked . | . . Hacks Repelled . | . . Allies | -11 -10 -------- Run | Yrd Mat Total Allies . | . . Largest Group . | . . Highest-Rated Group . | . . Highest-Rated Ally . | . . Total Orders . | . . Ally Attacks . | . . Total Damage . | . . Kills . | . . Allies Corrupted . | . . Allies Melted . | . . Intel | -11 -10 ------- Run | Yrd Mat Robot Analysis Total . | . . Derelict Logs Recovered . | . . Drone Launches . | . . Drone Recoveries . | . . Exploration | -11 -10 ------------- Run | Yrd Mat Turns Passed 205 | 8 197 Spaces Moved 105 | 7 98 Core . | . . Treads . | . . Legs 40 | 7 33 Wheels 65 | . 65 Hover . | . . Flight . | . . Fastest Speed 90 | 120 90 Average Speed 103 | 120 102 Slowest Speed 190 | 120 190 Overloaded Moves . | . . Propulsion Burnouts . | . . Robots Hopped . | . . Cave-ins Triggered . | . . Exploration Rate (%) 16 | 2 31 Regions Visited 1 Branch Regions . Pre-discovered Areas . | . . Known Exits Taken . | . . Unknown Exits Taken 1 | 1 . Scrap Searched . | . . Spaces Dug . | . . Terrain Destroyed . | . . Melee . | . . Projectile . | . . AOE . | . . Terrain Rammed . | . . Walls Destroyed . | . . Machines Disabled . | . . Actions | -11 -10 --------- Run | Yrd Mat Total 141 | 6 135 Wait . | . . Move 103 | 6 97 Hop . | . . Pick Up 1 | . 1 Fast Attach 1 | . 1 Attach 2 | . 2 Detach 1 | . 1 Swap 1 | . 1 Drop 1 | . 1 Fire 31 | . 31 Melee . | . . Ram . | . . Kick . | . . Crush . | . . Escape Stasis . | . . Rewire . | . . Trap . | . . Miscellaneous . | . . Route ------- -11/Scrapyard -10/Materials History --------- Turn | Location | Event 1 | -11/Scrapyard | Discovered new exit (range 2) 9 | -11/Scrapyard | Entered Materials 117 | -10/Materials | Lost 3 parts (1n1u1w) 130 | -10/Materials | Discovered new exit (range 14) 202 | -10/Materials | Core integrity fell below 50% 206 | -10/Materials | Core integrity fell below 20% 206 | -10/Materials | Destroyed by Lesser Abomination with Etherial Claws Last Messages --------------- 00172_ Lesser Abomination absorbs Com. Wheel. 00172_ Lesser Abomination sheds Ice Anomaly. 00172_ Ice Anomaly freezes U-05 Engineer. 00172_ Ice Anomaly freezes R-06 Scavenger. 00173_ A-02 Transporter destroyed. 00174_ Lesser Abomination absorbs Structural Scanner. 00174_ K-01 Serf collects debris. 00175_ Lesser Abomination absorbs Lgt. Treads. 00176_ Lesser Abomination absorbs Structural Scanner. 00177_ K-01 Serf destroyed. 00180_ K-01 Serf collects debris. 00188_ Connecting with Repair Station... 00188_ ALERT: Suspicious activity at Repair Station M001. Dispatching Investigation squad. 00193_ K-01 Serf cleans the Machine. 00199_ Wheel destroyed. 00201_ Critical hit (Intensify). 00201_ Med. Laser destroyed. 00202_ Critical hit (Intensify). 00203_ Assault Rifle destroyed. Map ----- +----------------------------------------------------+ | ?????????????????????????????????????????????????? | | ?????????????????????????????????????????????????? | | ?????????????????????????????????????????????????? | | ?????????????????????????????????????????????????? | | ????????????????????????????????????????????????## | | ????????????????????????????????????????????##### | | ????????????????????????????????????????????# # | | ???????????????????????????? ???????????????# # | | ?????????????????????????? ??????? #???# # | | ?????????????????????????? ??????? #???# # | | ??????????????????????????" ??????? #???# # | | ?????????????????????# ?? #?????? #???# + | | ?????????????????????# ?""r k#?????? #???# # | | ?????????? ????????# "" #?????? #???# # | | ?????????? ????????# """ #??????####???# # | | ?????????? ######### """ ##????? #???## # | | ?????????? """ +?????" #?### # | | ??????????" ? % " #?????" #?# ## | | ?????????""% ? +?????" #?# # | | ??# ???"""" ? #????? #?# | | ??# ??"""" ? % ############ | | +## """"" ? ^ | | """"%% ######### | | """"% #"""""""# # | | #" |"| "# ############ # | | % #" "# A@ #??########## | | = A #??# % | | % < #??# """ """ | | == #????""" """ | | #####+## ##+########?????"" """ # | | ???????? ######### #???????? | | ???????# #???????#""" #???????? # | | ???????# #???????#"R #??????? # | | ???????# #???????#""" #?????? + | | ???????# #???????#""" #??????###########+### | | ???????# #???????# #??????????????# | | ???????# #???????########??????????????# | | ???????# #?????????????????????????????# | | ???????# #?????????????????????????????# """ " | | ???????# #???????????????????????????????????? | | ???????# #???????????????????????????????????? | | ???????# #???????????????????????????????????? | | ???????######????????????????????????????????????? | | ?????????????????????????????????????????????????? | | ?????????????????????????????????????????????????? | | ?????????????????????????????????????????????????? | | ?????????????????????????????????????????????????? | | ?????????????????????????????????????????????????? | | ?????????????????????????????????????????????????? | | ?????????????????????????????????????????????????? | +----------------------------------------------------+ Best States ------------- Heat Dissipation 25 Energy Generation 10 Energy Capacity 250 Matter Stores 300 Matter Capacity 300 Sight Range 16 Terrain Scan Density 10 Weapon Shielding 33 Evasion (%) 45 Item Schematics ----------------- None Robot Schematics ------------------ None Fabricated ------------ Nothing Alien Tech Used ----------------- None Achievements -------------- None Challenges ------------ None Game ------ Seed TowerProtonTearclaws Manual? 0 Play Time 00:04:20 Cumulative 842.2 hours Start 2024.08.08 @ 11:17:36 End 2024.08.08 @ 11:19:53 Sessions 1 Manual Loads 0 Difficulty Rogue Special Mode Halloween2019/Abominations Game No. 1001 Rogue 722 Adventurer 124 Explorer 155 Win Type - Total 35 Types 27/0/6/1/0/0/0/1/0 Lore% 72 Gallery% 88 Achievement% 78 Wizard Run 0 Options --------- Layout 0 ASCII 0 Keyboard 1 Movement Numpad Keybinds 0 Fullscreen 2 Font 18/Smallcaps Map View 76x50 Zoom Use 0% Tactical HUD 1 Map Filters NONE Filters NONE Steam 1 RUN: 932546ce-5c2c-46c8-8eb8-df9ddca393d3